bitfinex/quotes_SOLUSD_20250728
["timestamp","ask_amount","ask_price","bid_price","bid_amount"]
[1753720711181,10.56731188,187.62,187.56,11.27731189]
[1753720711373,11.23358766,187.61,187.56,11.27731189]
[1753720711581,10.56731188,187.57,187.56,1e-08]
[1753720711776,10.56731188,187.58,187.56,1e-08]
[1753720711982,11.2336587,187.59,187.56,1e-08]
[1753720713086,10.56731188,187.58,187.56,1e-08]
[1753720713287,11.28731188,187.58,187.56,1e-08]
[1753720713595,11.28731188,187.57,187.56,1e-08]
[1753720714001,11.2336587,187.59,187.56,1e-08]
[1753720714190,10.56731188,187.6,187.56,1e-08]
[1753720714910,10.56731188,187.58,187.56,1e-08]
[1753720715082,10.56731188,187.57,187.56,1e-08]
[1753720715282,11.95372975,187.57,187.56,1e-08]
[1753720716482,50.37372975,187.57,187.56,1e-08]
[1753720717089,55.70507271,187.57,187.56,1e-08]
[1753720720483,17.28507271,187.57,187.56,1e-08]
[1753720720810,55.68507271,187.57,187.56,1e-08]
[1753720722008,11.23372975,187.57,187.56,1e-08]
[1753720722228,54.96507271,187.57,187.56,1e-08]
[1753720722516,55.68507271,187.57,187.56,1e-08]
[1753720722694,54.96507271,187.57,187.56,1e-08]
[1753720723110,38.4,187.57,187.56,0.71000001]
[1753720723289,5.33106296,187.58,187.56,1e-08]
[1753720723497,0.66641787,187.57,187.56,1e-08]
[1753720723709,11.23372975,187.57,187.56,1e-08]
[1753720723995,11.95372975,187.57,187.56,1e-08]
[1753720724195,11.23372975,187.57,187.56,1e-08]
[1753720724411,38.38,187.58,187.56,0.71000001]
[1753720724810,38.38,187.59,187.56,1e-08]
[1753720725006,0.66638234,187.58,187.56,0.71000001]
[1753720725508,39.04634682,187.59,187.56,0.71000001]
[1753720726237,38.36,187.61,187.58,10.56731188]
[1753720726406,0.6663113,187.6,187.57,10.56731188]
[1753720726721,0.6663113,187.6,187.57,0.71]
[1753720726920,38.36,187.61,187.57,10.56731188]
[1753720727102,39.02627578,187.61,187.58,0.71]
[1753720727501,38.36,187.61,187.58,0.71]
[1753720728004,38.36,187.61,187.59,0.71]
[1753720728314,38.36,187.61,187.57,15.89858999]
[1753720728509,38.36,187.61,187.58,0.71]
[1753720728720,0.66624027,187.62,187.58,0.71]
[1753720729027,0.66624027,187.62,187.59,0.71]
[1753720729900,0.66624027,187.62,187.57,10.56731188]
[1753720729901,11.95355215,187.62,187.57,10.56731188]
[1753720730333,11.95355215,187.62,187.57,11.27731188]
[1753720730838,10.56731188,187.58,187.56,1e-08]
[1753720731019,49.57372975,187.57,187.56,1e-08]
[1753720731211,50.29372975,187.57,187.56,1e-08]
[1753720731924,55.62507271,187.57,187.56,1e-08]
[1753720738634,83.2613917,187.57,187.56,1e-08]
[1753720739538,72.69407982,187.57,187.56,1e-08]
[1753720740311,55.62507271,187.57,187.56,1e-08]
[1753720740518,0.66641787,187.57,187.56,1e-08]
[1753720740722,48.90731188,187.57,187.56,0.71000001]
[1753720740917,48.90731188,187.57,187.56,1e-08]
[1753720741139,82.55497383,187.57,187.56,1e-08]
[1753720741446,71.98766195,187.57,187.56,1e-08]
[1753720741942,31.99776083,187.57,187.56,1e-08]
[1753720742124,98.65407982,187.57,187.56,1e-08]
[1753720742529,72.65407982,187.57,187.56,1e-08]
[1753720743333,78.71957982,187.57,187.56,1e-08]
[1753720743532,89.2868917,187.57,187.56,1e-08]
[1753720744230,78.71957982,187.57,187.56,1e-08]
[1753720744431,72.65407982,187.57,187.56,1e-08]
[1753720745628,83.2213917,187.57,187.56,1e-08]
[1753720745931,83.2213917,187.57,187.53,0.06]
[1753720745932,42.78468397,187.54,187.53,1e-08]
[1753720746132,92.35852032,187.54,187.53,1e-08]
[1753720746335,93.03852032,187.54,187.53,1e-08]
[1753720747138,98.37071611,187.54,187.53,1e-08]
[1753720750055,42.56603214,187.54,187.53,1e-08]
[1753720750239,80.23950767,187.54,187.53,0.67000001]
[1753720750561,26.0,187.54,187.53,0.67000001]
[1753720750768,65.00652447,187.54,187.53,0.67000001]
[1753720752158,38.34,187.56,187.53,11.23731189]
[1753720752332,38.34,187.56,187.54,10.56731188]
[1753720752649,5.99745201,187.58,187.55,0.67]
[1753720752850,38.34,187.57,187.56,0.67]
[1753720753632,5.33162721,187.56,187.53,1e-08]
[1753720753832,10.56731188,187.54,187.53,1e-08]
[1753720754056,49.57380081,187.55,187.53,0.67000001]
[1753720754261,38.34,187.56,187.53,11.23731189]
[1753720754477,38.34,187.56,187.54,0.67]
[1753720754643,38.34,187.56,187.55,0.67]
[1753720755674,38.34,187.56,187.53,1e-08]
[1753720755862,0.66648893,187.55,187.53,1e-08]
[1753720756161,0.66648893,187.55,187.54,0.67]
[1753720756667,0.66648893,187.55,187.53,1e-08]
[1753720756965,38.34,187.54,187.53,1e-08]
[1753720757167,39.00648893,187.55,187.53,1e-08]
[1753720757474,39.00648893,187.55,187.53,0.67000001]
[1753720757681,39.00648893,187.55,187.54,0.67]
[1753720759069,54.90571871,187.55,187.53,1e-08]
[1753720759362,11.24731188,187.54,187.53,1e-08]
[1753720759737,0.66648893,187.55,187.53,1e-08]
[1753720759946,38.98652447,187.54,187.53,0.67000001]
[1753720760375,38.98652447,187.54,187.53,1e-08]
[1753720760875,38.98652447,187.54,187.52,0.06]
[1753720760876,17.06900711,187.53,187.52,1e-08]
[1753720761082,28.31631899,187.53,187.52,1e-08]
[1753720761283,53.63631899,187.51,187.5,0.06]
[1753720761577,75.83826613,187.51,187.5,0.06]
[1753720761792,80.88699189,187.51,187.5,0.06]
[1753720761961,80.88699189,187.51,187.5,0.73]
[1753720762447,80.88699189,187.51,187.5,0.06]
[1753720764473,38.32,187.51,187.5,0.73]
[1753720765149,38.32,187.51,187.5,0.06]
[1753720765452,54.90036078,187.51,187.5,0.06]
[1753720765757,55.56699189,187.51,187.5,0.06]
[1753720765962,44.33968001,187.51,187.5,0.06]
[1753720766161,54.90699189,187.51,187.5,0.06]
[1753720769842,55.58699189,187.51,187.5,0.06]
[1753720770049,55.87131503,187.51,187.5,0.06]
[1753720770259,26.0,187.49,187.48,0.06]
[1753720770461,75.5740141,187.49,187.48,0.06]
[1753720770670,76.2540141,187.49,187.48,0.06]
[1753720770867,85.57179698,187.49,187.48,0.06]
[1753720771180,80.90763189,187.49,187.48,0.06]
[1753720772253,39.00670222,187.49,187.48,0.76]
[1753720773080,54.90763189,187.49,187.48,0.06]
[1753720773660,0.66670222,187.49,187.48,0.76]
[1753720773866,38.34,187.49,187.48,0.76]
[1753720774478,0.84216157,187.55,187.48,0.76]
[1753720774479,0.66656001,187.53,187.48,16.66113559]
[1753720774782,54.23865484,187.57,187.51,10.56731188]
[1753720774984,39.0064534,187.56,187.51,11.26731188]
[1753720775361,39.0064534,187.56,187.52,0.7]
[1753720776471,39.0064534,187.56,187.53,10.56731188]
[1753720776679,38.34,187.56,187.54,11.26731188]
[1753720776880,38.34,187.56,187.54,10.56731188]
[1753720777057,38.34,187.56,187.55,0.7]
[1753720777255,44.33776083,187.57,187.55,0.7]
[1753720777451,5.99740078,187.59,187.56,0.7]
[1753720777683,38.32,187.58,187.55,10.56731188]
[1753720777864,0.66641787,187.57,187.54,10.56731188]
[1753720778067,0.66641787,187.57,187.55,0.7]
[1753720778260,38.98638234,187.58,187.56,0.7]
[1753720778661,38.98638234,187.58,187.55,10.56731188]
[1753720778861,44.31766105,187.58,187.55,11.26731188]
[1753720779364,44.31766105,187.58,187.55,0.7]
[1753720780066,44.31766105,187.58,187.54,10.56731188]
[1753720780255,44.31766105,187.58,187.5,10.56731188]
[1753720780256,10.56731188,187.56,187.5,10.56731188]
[1753720780455,38.98648893,187.55,187.51,10.56731188]
[1753720780687,38.98648893,187.55,187.52,11.26731188]
[1753720780888,44.31847437,187.55,187.52,10.56731188]
[1753720781096,45.01847437,187.55,187.51,10.56731188]
[1753720781772,38.98648893,187.55,187.53,10.56731188]
[1753720781975,38.32,187.55,187.53,11.26731188]
[1753720782295,5.99783611,187.57,187.54,10.56731188]
[1753720782487,38.98641787,187.57,187.55,0.7]
[1753720782956,44.31784287,187.57,187.55,0.7]
[1753720783159,44.31784287,187.57,187.54,10.56731188]
[1753720783605,44.31784287,187.57,187.53,11.26731188]
[1753720785087,10.56731188,187.54,187.5,0.06]
[1753720785296,49.55387189,187.53,187.5,0.06]
[1753720785481,50.25387189,187.53,187.5,0.06]
[1753720785672,10.56731188,187.52,187.5,0.06]
[1753720785877,38.98663111,187.51,187.5,0.06]
[1753720786870,38.98663111,187.51,187.5,0.76]
[1753720787487,38.98663111,187.51,187.5,0.06]
[1753720787488,44.31968001,187.51,187.5,0.06]
[1753720787888,38.98663111,187.51,187.5,0.06]
[1753720789075,11.29731188,187.55,187.5,0.76]
[1753720789276,38.98652447,187.54,187.51,11.26731188]
[1753720789480,38.32,187.54,187.52,11.26731188]
[1753720790191,39.02,187.54,187.5,0.06]
[1753720790377,11.93387189,187.53,187.5,0.06]
[1753720791379,5.3327645,187.52,187.5,0.06]
[1753720791693,5.99936006,187.52,187.5,0.06]
[1753720791899,0.66659556,187.52,187.5,0.06]
[1753720794897,5.99942135,187.52,187.5,0.06]
[1753720795580,26.0,187.49,187.48,0.06]
[1753720795786,38.74445653,187.49,187.48,0.06]
[1753720795980,39.44445653,187.49,187.48,0.06]
[1753720796381,77.76445653,187.49,187.48,0.06]
[1753720796576,94.5491405,187.49,187.48,0.06]
[1753720796776,0.28432314,187.44,187.42,0.06]
[1753720797018,63.21570055,187.44,187.43,1e-08]
[1753720797315,67.20501572,187.44,187.42,1e-08]
[1753720797496,24.22882049,187.43,187.42,1e-08]
[1753720797813,5.33646405,187.39,187.37,0.06]
[1753720798018,26.0,187.35,187.33,0.06]
[1753720798176,70.77981338,187.35,187.33,0.06]
[1753720798371,7.12704942,187.34,187.33,0.06]
[1753720798574,7.82704942,187.34,187.33,0.06]
[1753720798794,11.92026231,187.34,187.33,0.06]
[1753720798984,49.54026231,187.34,187.33,0.06]
[1753720799878,54.87815064,187.34,187.33,0.06]
[1753720800276,38.98723604,187.34,187.33,0.06]
[1753720800487,55.57815064,187.34,187.33,0.06]
[1753720800692,54.87815064,187.34,187.33,0.06]
[1753720800906,55.57815064,187.34,187.33,0.06]
[1753720801284,54.87815064,187.34,187.33,0.06]
[1753720801480,49.54026231,187.34,187.33,0.06]
[1753720801994,38.98723604,187.34,187.33,0.06]
[1753720802607,38.98723604,187.34,187.33,0.75]
[1753720802608,38.32,187.34,187.33,0.75]
[1753720802780,38.34,187.36,187.33,0.75]
[1753720802981,38.34,187.36,187.34,0.69]
[1753720803217,0.66698682,187.41,187.35,11.24302627]
[1753720803388,38.34,187.4,187.37,10.55302627]
[1753720803784,48.89302627,187.4,187.34,17.90072627]
[1753720804002,38.34,187.4,187.36,10.55302627]
[1753720804208,38.34,187.4,187.38,10.55302627]
[1753720804384,38.34,187.4,187.34,11.99532105]
[1753720804385,38.34,187.42,187.39,10.55302627]
[1753720804585,38.34,187.42,187.4,11.24302627]
[1753720804794,38.34,187.42,187.4,10.55302627]
[1753720804988,39.00688006,187.44,187.41,0.69]
[1753720805194,39.00688006,187.44,187.39,10.55302627]
[1753720805411,10.55302627,187.42,187.37,10.55302627]
[1753720805619,39.00698682,187.41,187.37,10.55302627]
[1753720805794,50.23001309,187.41,187.36,10.55302627]
[1753720807343,49.56001309,187.41,187.36,11.24302627]
[1753720807528,0.66698682,187.41,187.39,10.55302627]
[1753720807714,0.66691564,187.43,187.4,11.24302627]
[1753720807883,39.00684449,187.45,187.42,10.55302627]
[1753720808085,39.00684449,187.45,187.43,10.55302627]
[1753720808316,39.00684449,187.45,187.42,11.24302627]
[1753720808525,39.00684449,187.45,187.42,10.55302627]
[1753720808698,39.00684449,187.45,187.41,10.55302627]
[1753720808906,39.00684449,187.45,187.42,10.55302627]
[1753720809207,0.03,187.49,187.44,10.55302627]
[1753720809428,38.34,187.48,187.44,10.55302627]
[1753720809586,0.66677335,187.47,187.43,11.24302627]
[1753720810402,0.66677335,187.47,187.44,11.24302627]
[1753720811096,0.66677335,187.47,187.44,0.69]
[1753720811821,0.03,187.45,187.44,11.24302627]
[1753720812714,0.03,187.45,187.44,10.55302627]
[1753720814021,0.03,187.45,187.44,11.24302627]
[1753720814197,0.03,187.45,187.44,16.57806681]
[1753720814592,0.03,187.45,187.44,11.24302627]
[1753720815890,0.03,187.45,187.44,16.57806681]
[1753720816119,0.03,187.45,187.44,11.24302627]
[1753720816494,0.03,187.45,187.44,16.57806681]
[1753720817323,0.03,187.45,187.44,10.55302627]
[1753720820521,0.03,187.45,187.44,15.88806681]
[1753720820709,0.03,187.45,187.44,16.57806681]
[1753720821301,0.03,187.45,187.44,33.89625483]
[1753720821903,0.03,187.45,187.44,70.73360424]
[1753720823523,0.03,187.45,187.44,60.18057797]
[1753720823830,0.03,187.45,187.44,59.89625483]
[1753720824831,0.03,187.45,187.44,70.4492811]
[1753720826636,0.03,187.45,187.44,15.88806681]
[1753720826804,0.7,187.45,187.4,0.69]
[1753720827007,0.67,187.44,187.38,5.33674885]
[1753720827211,1.33688006,187.44,187.39,10.55302627]
[1753720827411,11.21990633,187.44,187.39,10.55302627]
[1753720827607,11.22302627,187.43,187.38,10.55302627]
[1753720827829,10.55302627,187.43,187.39,0.69]
[1753720828132,0.03,187.45,187.42,10.55302627]
[1753720828351,0.03,187.45,187.44,15.88806681]
[1753720828646,0.03,187.45,187.44,32.67275078]
[1753720828810,0.03,187.45,187.44,44.20010019]
[1753720829335,0.03,187.45,187.44,44.73360424]
[1753720830406,0.03,187.45,187.44,33.89625483]
[1753720830610,0.03,187.45,187.44,32.67275078]
[1753720831436,0.03,187.45,187.44,15.88806681]
[1753720832527,0.03,187.49,187.44,95.86770155]
[1753720832812,0.03,187.49,187.48,10.55302627]
[1753720833216,0.03,187.49,187.48,11.25302627]
[1753720833431,0.03,187.49,187.48,11.78641649]
[1753720833817,0.03,187.49,187.48,17.12031877]
[1753720834016,0.03,187.49,187.48,34.18932588]
[1753720834235,0.03,187.49,187.48,15.88692855]
[1753720834443,0.03,187.49,187.48,10.55302627]
[1753720834739,0.75,187.49,187.48,10.55302627]
[1753720834919,0.03,187.49,187.48,17.12031877]
[1753720835125,0.03,187.49,187.48,34.18932588]
[1753720835317,0.03,187.49,187.48,72.48932588]
[1753720836743,0.03,187.49,187.48,72.20500274]
[1753720837130,0.03,187.49,187.48,72.48932588]
[1753720837372,0.03,187.53,187.49,17.06900711]
[1753720837528,0.03,187.53,187.52,10.55302627]
[1753720838915,0.03,187.53,187.52,15.88579077]
[1753720839115,0.03,187.53,187.52,16.58579077]
[1753720839521,0.03,187.53,187.52,15.88579077]
[1753720840846,0.03,187.53,187.52,10.55302627]
[1753720841047,0.03,187.53,187.52,15.88579077]
[1753720841242,0.75,187.53,187.52,10.55302627]
[1753720841747,0.75,187.53,187.5,10.55302627]
[1753720842054,0.03,187.53,187.52,10.55302627]
[1753720843556,0.75,187.53,187.52,10.55302627]
[1753720844051,0.75,187.53,187.51,10.55302627]
[1753720844224,0.03,187.53,187.52,10.55302627]
[1753720844429,0.75,187.53,187.52,10.55302627]
[1753720845553,0.03,187.53,187.52,10.55302627]
[1753720845763,0.03,187.53,187.52,15.88579077]
[1753720846625,0.75,187.53,187.52,10.55302627]
[1753720847054,0.03,187.53,187.52,10.55302627]
[1753720847227,0.75,187.53,187.52,10.55302627]
[1753720847850,0.03,187.53,187.5,5.33330777]
[1753720848052,0.03,187.53,187.52,10.55302627]
[1753720848563,0.03,187.53,187.52,11.25302627]
[1753720848743,0.03,187.53,187.52,10.55302627]
[1753720849965,0.03,187.53,187.52,15.88579077]
[1753720850262,0.03,187.53,187.52,16.58579077]
[1753720852650,0.03,187.53,187.52,33.37047474]
[1753720852959,0.03,187.53,187.52,34.18807433]
[1753720853945,0.03,187.55,187.54,42.78468397]
[1753720854152,0.03,187.55,187.54,186.3031256]
[1753720854465,0.03,187.55,187.54,186.46990603]
[1753720854856,0.03,187.55,187.54,185.76990603]
[1753720856056,0.03,187.55,187.54,186.46990603]
[1753720856441,0.03,187.55,187.54,185.76990603]
[1753720856940,0.03,187.55,187.54,186.46990603]
[1753720858765,0.03,187.55,187.54,185.76990603]
[1753720858973,0.03,187.55,187.54,186.46990603]
[1753720860569,0.03,187.55,187.54,80.18522206]
[1753720860965,0.03,187.55,187.54,48.85302627]
[1753720861279,11.30302627,187.55,187.49,0.06]
[1753720861450,10.55302627,187.52,187.49,0.06]
[1753720861657,0.66663111,187.51,187.49,0.06]
[1753720861850,16.74602627,187.5,187.45,0.06]
[1753720862075,10.55302627,187.48,187.45,0.06]
[1753720862282,0.72,187.49,187.46,10.55302627]
[1753720862484,0.66663111,187.51,187.48,10.55302627]
[1753720862700,0.72,187.5,187.45,0.06]
[1753720862986,0.66670222,187.49,187.45,0.06]
[1753720863484,0.72,187.48,187.47,10.55302627]
[1753720863801,1.38663111,187.51,187.47,10.55302627]
[1753720864103,0.72,187.5,187.47,10.55302627]
[1753720864498,0.72,187.5,187.47,15.88717054]
[1753720864782,0.66659556,187.52,187.48,10.55302627]
[1753720864978,0.72,187.54,187.51,10.55302627]
[1753720865278,0.72,187.54,187.52,10.55302627]
[1753720865665,0.03,187.55,187.53,10.55302627]
[1753720866178,0.03,187.55,187.54,10.55302627]
[1753720868060,0.03,187.55,187.54,15.88522206]
[1753720868266,0.03,187.55,187.54,10.55302627]
[1753720870462,0.03,187.55,187.54,15.88522206]
[1753720870668,0.03,187.55,187.54,33.37990603]
[1753720870880,0.03,187.55,187.54,33.9131256]
[1753720872156,0.03,187.55,187.54,160.89555187]
[1753720872361,0.03,187.55,187.54,160.3623323]
[1753720872676,0.03,187.57,187.56,43.06900711]
[1753720872883,0.03,187.57,187.56,92.4351961]
[1753720873191,0.75,187.57,187.56,0.53316272]
[1753720873394,0.75,187.57,187.54,10.55302627]
[1753720873685,0.03,187.57,187.55,10.55302627]
[1753720873981,0.03,187.57,187.56,17.1278162]
[1753720874786,0.03,187.57,187.56,15.88465348]
[1753720875083,0.03,187.57,187.56,10.55302627]
[1753720875680,0.03,187.57,187.56,15.88465348]
[1753720877283,0.03,187.57,187.56,33.91250017]
[1753720877784,0.03,187.57,187.56,160.99250017]
[1753720877978,0.03,187.57,187.56,160.74366059]
[1753720879491,0.03,187.57,187.56,159.74933745]
[1753720880570,0.03,187.57,187.56,160.45933745]
[1753720883204,0.03,187.57,187.56,160.74366059]
[1753720883508,0.1,187.59,187.58,43.06900711]
[1753720883663,0.1,187.59,187.58,92.41513925]
[1753720883868,0.1,187.59,187.58,93.12513925]
[1753720884092,0.1,187.59,187.58,94.71633925]
[1753720884294,1e-08,187.59,187.58,183.51633925]
[1753720884485,1e-08,187.59,187.58,182.98323338]
[1753720885879,1e-08,187.59,187.58,188.31429212]
[1753720886079,1e-08,187.59,187.58,150.05429212]
[1753720886287,1e-08,187.59,187.58,185.72876898]
[1753720886684,1e-08,187.59,187.58,36.55302627]
[1753720886996,0.72000001,187.59,187.57,10.55302627]
[1753720887304,0.72,187.58,187.57,10.55302627]
[1753720887882,0.72,187.58,187.56,10.55302627]
[1753720888070,0.72,187.57,187.56,10.55302627]
[1753720888272,0.72000001,187.59,187.56,10.55302627]
[1753720888797,0.72000001,187.59,187.57,10.55302627]
[1753720889392,1e-08,187.59,187.58,10.55302627]
[1753720890286,1e-08,187.59,187.58,15.88408501]
[1753720890467,0.72000001,187.59,187.55,10.55302627]
[1753720890672,10.55302627,187.58,187.52,15.88570787]
[1753720890899,11.91944414,187.57,187.51,54.14598794]
[1753720891074,11.91944414,187.57,187.51,48.81302627]
[1753720891075,11.25302627,187.56,187.51,48.81302627]
[1753720891282,0.7,187.55,187.51,48.81302627]
[1753720891474,10.55302627,187.57,187.51,48.81302627]
[1753720891688,0.7,187.54,187.52,10.55302627]
[1753720891895,1.36641787,187.57,187.52,10.55302627]
[1753720892079,1.36641787,187.57,187.53,10.55302627]
[1753720892280,0.7,187.56,187.53,10.55302627]
[1753720892516,0.7,187.55,187.53,10.55302627]
[1753720893597,0.7,187.54,187.51,48.81302627]
[1753720893816,1e-08,187.59,187.54,16.78468397]
[1753720894002,1e-08,187.59,187.58,10.55302627]
[1753720894597,1e-08,187.59,187.58,15.88408501]
[1753720894805,1e-08,187.59,187.58,10.55302627]
[1753720895111,11.25302628,187.59,187.56,88.8]
[1753720895280,11.25302628,187.59,187.52,42.78468397]
[1753720895281,11.21940861,187.58,187.53,15.88547083]
[1753720895483,0.7,187.57,187.53,15.88547083]
[1753720895681,0.66638234,187.58,187.54,16.78468397]
[1753720895895,10.55302628,187.59,187.57,10.55302627]
[1753720895896,1e-08,187.59,187.57,10.55302627]
[1753720896092,1e-08,187.59,187.58,28.52081611]
[1753720896597,1e-08,187.59,187.58,33.85187485]
[1753720898603,1e-08,187.59,187.58,33.20187485]
[1753720898917,0.70000001,187.59,187.56,10.55302627]
[1753720899075,0.7,187.58,187.55,15.88493776]
[1753720900218,0.7,187.58,187.56,10.55302627]
[1753720900369,1e-08,187.59,187.56,15.88463017]
[1753720900574,1e-08,187.59,187.58,10.55302627]
[1753720901506,0.70000001,187.59,187.56,10.55302627]
[1753720901805,0.7,187.58,187.55,10.55302627]
[1753720902602,1e-08,187.59,187.56,10.55302627]
[1753720903010,0.70000001,187.59,187.56,10.55302627]
[1753720903185,1e-08,187.59,187.56,10.55302627]
[1753720903694,0.7,187.58,187.55,10.55302627]
[1753720904011,0.7,187.58,187.54,5.33218144]
[1753720904012,1e-08,187.59,187.56,10.55302627]
[1753720904189,1e-08,187.59,187.57,10.55302627]
[1753720905282,0.70000001,187.59,187.56,10.55302627]
[1753720905523,1e-08,187.59,187.56,10.55302627]
[1753720906009,1e-08,187.59,187.57,11.20302627]
[1753720906220,1e-08,187.59,187.58,10.55302627]
[1753720906822,1e-08,187.59,187.56,0.65]
[1753720907026,1e-08,187.59,187.57,5.33134296]
[1753720907184,0.70000001,187.59,187.56,10.55302627]
[1753720907381,0.7,187.58,187.56,10.55302627]
[1753720908684,0.7,187.57,187.54,10.55302627]
[1753720909298,1e-08,187.59,187.56,10.55302627]
[1753720909500,0.66634683,187.59,187.56,10.55302627]
[1753720909695,1e-08,187.59,187.56,10.55302627]
[1753720910012,0.70000001,187.59,187.56,10.55302627]
[1753720910209,1e-08,187.59,187.56,10.55302627]
[1753720910392,5.33081603,187.59,187.53,22.11710093]
[1753720910711,11.91940861,187.58,187.52,10.55302627]
[1753720910891,10.55302627,187.56,187.5,10.55302627]
[1753720911198,0.66641787,187.57,187.53,10.55302627]
[1753720911386,0.66641787,187.57,187.53,15.8855064]
[1753720911586,0.66641787,187.57,187.53,10.55302627]
[1753720911801,1.36641787,187.57,187.53,10.55302627]
[1753720912211,1.36641787,187.57,187.52,15.88571392]
[1753720912446,1.36641787,187.57,187.52,10.55302627]
[1753720912447,0.7,187.56,187.52,10.55302627]
[1753720912591,0.7,187.55,187.52,10.55302627]
[1753720913518,1.36641787,187.57,187.53,10.55302627]
[1753720913694,1.36641787,187.57,187.53,11.20302627]
[1753720913890,1e-08,187.59,187.54,0.65]
[1753720914197,0.70000001,187.59,187.54,11.20302627]
[1753720914399,0.70000001,187.59,187.55,11.20302627]
[1753720914400,0.66638234,187.58,187.55,11.20302627]
[1753720914602,1e-08,187.59,187.57,10.55302627]
[1753720914804,1e-08,187.59,187.58,10.55302627]
[1753720915004,0.03,187.6,187.58,54.27203338]
[1753720915206,0.03,187.6,187.59,67.04511083]
[1753720915404,0.03,187.63,187.6,22.39949751]
[1753720915602,0.03,187.63,187.62,36.55302627]
[1753720915802,0.03,187.63,187.62,91.86203338]
[1753720916010,0.03,187.63,187.62,92.51203338]
[1753720916288,0.03,187.65,187.62,92.51203338]
[1753720916492,0.03,187.65,187.63,11.08599008]
[1753720916688,0.03,187.65,187.63,11.73599008]
[1753720918122,0.03,187.65,187.63,17.06562819]
[1753720918332,0.03,187.65,187.63,43.06562819]
[1753720918536,0.03,187.65,187.63,59.85031216]
[1753720919901,0.03,187.65,187.63,10.55302627]
[1753720920719,0.73,187.64,187.6,48.79302627]
[1753720920919,0.71,187.63,187.6,10.55302627]
[1753720921420,0.03,187.64,187.62,10.55302627]
[1753720921595,0.03,187.64,187.63,10.55302627]
[1753720923714,0.03,187.64,187.63,16.58266438]
[1753720924334,0.03,187.64,187.63,59.36734835]
[1753720924504,0.03,187.64,187.63,58.66734835]
[1753720924704,0.74,187.64,187.61,10.55302627]
[1753720925019,0.71,187.63,187.61,10.55302627]
[1753720925219,0.03,187.64,187.61,10.55302627]
[1753720925606,0.03,187.64,187.61,15.88310294]
[1753720926001,0.03,187.64,187.62,10.55302627]
[1753720926203,0.03,187.64,187.63,27.33771024]
[1753720926515,0.03,187.64,187.63,117.12203338]
[1753720927840,1e-08,187.64,187.63,122.45167149]
[1753720930716,1e-08,187.64,187.63,160.67167149]
[1753720937120,1e-08,187.64,187.63,159.97167149]
[1753720937442,1e-08,187.64,187.63,160.67167149]
[1753720938431,1e-08,187.64,187.63,159.68734835]
[1753720940503,1e-08,187.64,187.63,160.38734835]
[1753720940908,1e-08,187.64,187.63,160.67167149]
[1753720941134,0.03,187.65,187.64,16.78468397]
[1753720941437,0.03,187.65,187.64,127.92367191]
[1753720941644,0.03,187.65,187.64,132.72009059]
[1753720941811,0.03,187.66,187.65,105.58468397]
[1753720942011,1e-08,187.68,187.67,0.28432314]
[1753720942215,1.5827,187.79,187.67,0.28432314]
[1753720942216,0.71,187.78,187.71,17.06900711]
[1753720942468,0.71,187.78,187.77,10.55302627]
[1753720943935,0.71,187.78,187.76,10.55302627]
[1753720944436,0.71,187.77,187.76,10.55302627]
[1753720944943,0.71,187.77,187.74,10.55302627]
[1753720945237,0.71,187.77,187.73,99.35302627]
[1753720945416,0.71,187.77,187.73,10.55302627]
[1753720945622,0.71,187.76,187.75,10.55302627]
[1753720945925,0.71,187.76,187.71,10.55302627]
[1753720945926,11.26302627,187.76,187.71,10.55302627]
[1753720946131,1.37577896,187.75,187.71,10.55302627]
[1753720946336,0.71,187.74,187.71,10.55302627]
[1753720946529,0.71,187.73,187.71,10.55302627]
[1753720946727,0.6657435,187.76,187.72,10.55302627]
[1753720946924,0.71,187.76,187.75,10.55302627]
[1753720947123,2.2927,187.79,187.75,10.55302627]
[1753720947431,16.54286533,187.82,187.77,10.55302627]